bitfinex-derivatives/quotes_BTCF0:USTF0_20241210
["timestamp","ask_amount","ask_price","bid_price","bid_amount"]
[1733806910196,0.05460069,97000.0,96999.0,0.37037489]
[1733806912203,0.05460069,97000.0,96999.0,0.55184452]
[1733806912409,0.05460069,97000.0,96999.0,0.37037489]
[1733806912804,0.05460069,97000.0,96992.0,0.2421043]
[1733806913012,0.05460069,97000.0,96958.0,0.32441303]
[1733806913013,0.051571,96911.0,96901.0,0.26483185]
[1733806913213,0.3608,96843.0,96831.0,0.04510383]
[1733806913408,0.3608,96813.0,96760.0,0.03553789]
[1733806913714,0.38022602,96764.0,96738.0,0.00966509]
[1733806914019,0.051663,96737.0,96732.0,0.00010131]
[1733806914318,0.051663,96737.0,96694.0,0.3608]
[1733806914319,0.35184,96733.0,96722.0,0.26226904]
[1733806914513,0.3608,96723.0,96683.0,0.1498]
[1733806914809,0.36084,96701.0,96700.0,2.62049061]
[1733806915010,0.36084,96701.0,96693.0,0.3608]
[1733806915011,4e-05,96701.0,96693.0,0.3608]
[1733806915208,0.36084,96701.0,96700.0,0.089]
[1733806915409,0.36084,96701.0,96700.0,0.08912576]
[1733806915613,0.36084,96701.0,96700.0,2.47918442]
[1733806915918,0.36084,96701.0,96700.0,0.20712576]
[1733806916104,0.36084,96701.0,96700.0,0.00012576]
[1733806916300,0.36084,96701.0,96691.0,0.34636]
[1733806916301,0.051687,96692.0,96691.0,0.34248576]
[1733806916507,0.412487,96692.0,96689.0,0.207]
[1733806916706,0.412487,96692.0,96689.0,0.059417]
[1733806916908,0.412417,96692.0,96689.0,0.048417]
[1733806917418,0.412417,96692.0,96690.0,8.76e-05]
[1733806918107,0.3608,96692.0,96691.0,0.089]
[1733806918308,0.36084,96701.0,96691.0,0.089]
[1733806918309,0.3608,96700.0,96691.0,0.089]
[1733806918510,0.3608,96713.0,96709.0,0.089]
[1733806918707,0.3608,96713.0,96700.0,0.3608]
[1733806918910,0.3608,96713.0,96712.0,0.089]
[1733806919304,0.3608,96725.0,96712.0,2.47905866]
[1733806919512,0.41386501,96733.0,96724.0,0.089]
[1733806919714,0.41386501,96733.0,96708.0,0.3608]
[1733806919715,4.54697568,96732.0,96717.0,2.62284124]
[1733806919909,0.3608,96723.0,96713.0,0.1512]
[1733806920109,4.54697568,96722.0,96716.0,0.3608]
[1733806920309,3.74677025,96721.0,96716.0,0.3608]
[1733806920510,4.54697568,96720.0,96716.0,2.68389619]
[1733806920815,4.54697568,96719.0,96716.0,2.02332696]
[1733806921117,4.54697568,96718.0,96716.0,2.07500096]
[1733806921307,4.54697568,96717.0,96716.0,2.07500096]
[1733806921704,2.52364872,96717.0,96716.0,0.051634]
[1733806921910,1.71443737,96717.0,96716.0,0.351634]
[1733806922117,0.99953737,96717.0,96716.0,0.351634]
[1733806922311,0.76123737,96717.0,96716.0,0.351634]
[1733806922509,0.52333737,96717.0,96716.0,0.351634]
[1733806922909,0.4788154,96719.0,96716.0,0.698554]
[1733806923109,0.67179818,96718.0,96716.0,0.698554]
[1733806923310,0.4788154,96719.0,96718.0,0.051753]
[1733806923618,0.54362481,96719.0,96718.0,0.051753]
[1733806923818,0.54362481,96719.0,96718.0,0.35067571]
[1733806924214,1.21543235,96719.0,96718.0,0.35063571]
[1733806924712,0.54362481,96719.0,96718.0,0.35059571]
[1733806924917,0.6717941,96740.0,96739.0,0.051662]
[1733806925117,0.77698233,96741.0,96740.0,0.19992706]
[1733806925314,0.48021541,96748.0,96743.0,0.051659]
[1733806925614,0.3608,96758.0,96743.0,0.051659]
[1733806925811,0.3608,96758.0,96740.0,0.11291755]
[1733806926005,0.3608,96758.0,96739.0,9.599e-05]
[1733806926407,0.3608,96758.0,96746.0,0.051658]
[1733806926611,0.38975076,96757.0,96753.0,0.051654]
[1733806926811,0.00516763,96756.0,96753.0,0.051654]
[1733806927219,0.3608,96754.0,96753.0,0.051654]
[1733806927716,0.3608,96754.0,96740.0,0.24298806]
[1733806927926,0.17845294,96745.0,96743.0,0.051659]
[1733806928222,0.17845294,96747.0,96739.0,0.30121599]
[1733806928426,0.3608,96745.0,96739.0,0.00121599]
[1733806928721,0.17845427,96742.0,96741.0,0.05166]
[1733806928927,0.00516779,96753.0,96741.0,0.05166]
[1733806929116,0.17844708,96744.0,96741.0,0.05166]
[1733806929421,0.17844708,96742.0,96741.0,0.05166]
[1733806929622,0.3608,96746.0,96741.0,0.05166]
[1733806930523,0.3608,96742.0,96739.0,0.00121599]
[1733806930819,0.1784864,96751.0,96739.0,0.66201599]
[1733806931011,0.14873762,96746.0,96739.0,0.66201599]
[1733806931213,0.11894691,96741.0,96739.0,0.41367799]
[1733806931518,0.14873762,96751.0,96741.0,0.05166]
[1733806931710,0.1190023,96744.0,96741.0,0.05166]
[1733806932115,0.1190023,96745.0,96739.0,0.36201599]
[1733806932316,0.36740779,96753.0,96744.0,0.051659]
[1733806932516,0.3608,96753.0,96744.0,0.051659]
[1733806932723,0.3608,96745.0,96739.0,0.05287699]
[1733806932922,0.08929326,96742.0,96739.0,0.05287699]
[1733806933123,0.08929326,96740.0,96739.0,0.05287699]
[1733806933323,0.3608,96745.0,96739.0,0.05287699]
[1733806933818,0.1784864,96772.0,96739.0,0.05287699]
[1733806933819,0.08935323,96740.0,96739.0,0.00121599]
[1733806934021,0.08935323,96747.0,96739.0,0.30121599]
[1733806934214,0.08935323,96746.0,96737.0,0.31649739]
[1733806934422,0.08935323,96742.0,96738.0,0.051662]
[1733806934728,0.08935323,96753.0,96737.0,0.31649739]
[1733806934921,0.45015323,96754.0,96737.0,0.31649739]
[1733806935124,0.45015323,96744.0,96738.0,8.473e-05]
[1733806935417,0.3608,96744.0,96741.0,0.05166]
[1733806935617,0.45033517,96744.0,96741.0,0.05166]
[1733806935824,0.3608,96744.0,96737.0,0.27009145]
[1733806936023,0.3608,96744.0,96741.0,0.05166]
[1733806936628,0.412459,96744.0,96737.0,0.27009145]
[1733806936828,0.3608,96744.0,96738.0,7.787e-05]
[1733806937231,0.3608,96744.0,96739.0,0.051662]
[1733806937430,0.3608,96744.0,96737.0,0.17201011]
[1733806937617,0.3608,96744.0,96740.0,0.051661]
[1733806938028,0.79387778,96744.0,96740.0,0.051661]
[1733806938225,0.79387778,96744.0,96741.0,9.853e-05]
[1733806938531,0.91293469,96744.0,96741.0,9.853e-05]
[1733806938720,0.79387778,96744.0,96741.0,9.853e-05]
[1733806939322,0.11905691,96742.0,96741.0,9.853e-05]
[1733806939523,0.11905691,96743.0,96741.0,9.853e-05]
[1733806939820,0.09029615,96743.0,96741.0,9.853e-05]
[1733806940029,0.09029615,96743.0,96742.0,0.05166]
[1733806940336,0.36220001,96744.0,96742.0,0.05166]
[1733806940522,0.3608,96744.0,96742.0,0.05174]
[1733806940723,0.3608,96744.0,96743.0,8e-05]
[1733806941120,0.61066816,96744.0,96743.0,8e-05]
[1733806941323,0.43218176,96744.0,96743.0,8e-05]
[1733806942234,0.7094619,96744.0,96743.0,8e-05]
[1733806942533,1.03139714,96744.0,96743.0,8e-05]
[1733806943227,1.40088487,96744.0,96743.0,8e-05]
[1733806944020,0.67059714,96744.0,96743.0,8e-05]
[1733806944233,0.91648739,96744.0,96743.0,8e-05]
[1733806944426,0.67059714,96744.0,96743.0,8e-05]
[1733806944825,1.04028604,96744.0,96743.0,8e-05]
[1733806945132,1.04028604,96744.0,96742.0,0.05159826]
[1733806945331,1.40108604,96743.0,96742.0,0.05159826]
[1733806945729,1.67785614,96743.0,96742.0,0.05159826]
[1733806946228,1.40108604,96743.0,96742.0,0.05159826]
[1733806947825,1.40108604,96743.0,96739.0,0.3472]
[1733806948025,1.04028604,96742.0,96739.0,0.3472]
[1733806948231,4e-05,96740.0,96739.0,0.1088]
[1733806948427,1.4472456,96740.0,96739.0,0.1088]
[1733806948637,1.88032338,96740.0,96739.0,0.1088]
[1733806948830,1.88032338,96740.0,96739.0,0.10891024]
[1733806949129,1.88032338,96740.0,96728.0,0.3472]
[1733806949339,0.3608,96729.0,96728.0,0.3472]
[1733806949536,1.8080456,96729.0,96728.0,0.398868]
[1733806949736,2.24112338,96729.0,96697.0,0.3472]
[1733806949933,0.3608,96702.0,96701.0,0.052372]
[1733806950132,1.40112604,96702.0,96701.0,0.05246393]
[1733806950728,1.40112604,96702.0,96697.0,0.18259995]
[1733806950922,1.04028604,96701.0,96697.0,0.18259995]
[1733806951133,1.04028604,96700.0,96698.0,0.051684]
[1733806951339,0.67059714,96699.0,96698.0,0.051684]
[1733806951729,0.67059714,96699.0,96698.0,0.05181271]
[1733806953528,0.27728014,96699.0,96698.0,0.05181271]
[1733806953730,0.10375014,96699.0,96698.0,0.05181271]
[1733806953934,0.57822146,96713.0,96711.0,0.051677]
[1733806954128,0.57822146,96713.0,96697.0,0.19213779]
[1733806954129,0.57682145,96713.0,96697.0,0.14270833]
[1733806954331,0.57682145,96713.0,96699.0,0.051683]
[1733806954536,0.57682145,96713.0,96700.0,0.051682]
[1733806954738,0.57682145,96713.0,96711.0,0.051677]
[1733806954939,0.3608,96713.0,96711.0,0.051677]
[1733806955234,0.3608,96713.0,96712.0,0.00013228]
[1733806956436,0.79387778,96713.0,96712.0,0.00013228]
[1733806957125,1.040859,96713.0,96712.0,0.00013228]
[1733806957329,0.79387778,96713.0,96712.0,0.00013228]
[1733806957530,0.051679,96707.0,96698.0,0.051683]
[1733806957729,0.3608,96699.0,96698.0,0.051683]
[1733806958131,0.79387778,96699.0,96698.0,0.051683]
[1733806958539,0.79391778,96699.0,96698.0,0.05179001]
[1733806959139,0.79391778,96699.0,96697.0,0.13317049]
[1733806959140,1.06153656,96699.0,96697.0,0.13317049]
[1733806959329,0.3608,96698.0,96697.0,0.13317049]
[1733806959530,0.36084,96698.0,96697.0,0.13317049]
[1733806959734,0.79391778,96698.0,96697.0,0.13317049]
[1733806960226,0.79391778,96698.0,96697.0,0.1332939]
[1733806961140,1.00966766,96698.0,96697.0,0.1332939]
[1733806961441,0.80342734,96698.0,96697.0,0.1332939]
[1733806963842,1.01629274,96698.0,96697.0,0.1332939]
[1733806964432,0.37034956,96698.0,96697.0,0.1332939]
[1733806964631,0.36084,96698.0,96697.0,0.1332939]
[1733806965936,0.36084,96698.0,96697.0,0.34736]
[1733806966731,0.36084,96698.0,96697.0,0.3474584]
[1733806967837,0.00140001,96699.0,96698.0,0.051684]
[1733806968029,0.15394877,96708.0,96698.0,0.051684]
[1733806968230,0.94930655,96709.0,96707.0,0.051679]
[1733806968445,0.94782655,96709.0,96707.0,0.051679]
[1733806969542,0.15394877,96708.0,96707.0,0.051679]
[1733806970338,0.36220001,96709.0,96707.0,0.051679]
[1733806970641,0.79387778,96709.0,96707.0,0.051679]
[1733806970847,0.79387778,96709.0,96708.0,4e-05]
[1733806971043,0.41489585,96709.0,96708.0,4e-05]
[1733806971344,0.3608,96709.0,96708.0,4e-05]
[1733806975334,0.06129427,96714.0,96708.0,4e-05]
[1733806975536,0.85517205,96714.0,96709.0,0.051678]
[1733806975746,0.94760637,96714.0,96713.0,4e-05]
[1733806975939,0.85517205,96714.0,96713.0,4e-05]
[1733806976450,0.94779103,96714.0,96713.0,4e-05]
[1733806976644,0.3608,96714.0,96713.0,4e-05]
[1733806976942,0.09261898,96725.0,96721.0,0.051671]
[1733806977145,0.43307778,96725.0,96721.0,0.051671]
[1733806977440,0.43307778,96725.0,96707.0,0.00970796]
[1733806977441,0.43307778,96725.0,96724.0,4e-05]
[1733806982245,0.37180983,96726.0,96725.0,0.051669]
[1733806982436,0.37040982,96726.0,96725.0,0.051669]
[1733806983252,0.37040982,96726.0,96725.0,0.051709]
[1733806983838,0.8034876,96726.0,96725.0,0.051709]
[1733806984340,0.09261898,96732.0,96731.0,0.051666]
[1733806984549,0.09261898,96734.0,96733.0,0.051665]
[1733806984746,0.09261898,96736.0,96735.0,0.051664]
[1733806984946,0.3608,96745.0,96744.0,0.051659]
[1733806985246,0.36596822,96745.0,96744.0,0.051699]
[1733806985551,0.37540875,96745.0,96744.0,0.051699]
[1733806986046,0.36596822,96745.0,96744.0,0.051699]
[1733806986347,0.00516822,96745.0,96744.0,0.051699]
[1733806990655,0.00516822,96745.0,96744.0,0.06117706]
[1733806992850,0.00516822,96745.0,96744.0,0.06130328]
[1733806993952,0.00503594,96745.0,96744.0,0.06130328]
[1733806994758,0.3608,96763.0,96762.0,0.051649]
[1733806994945,0.80339439,96763.0,96762.0,0.051649]
[1733806995151,0.80339439,96763.0,96762.0,0.051689]
[1733806998659,0.3608,96763.0,96762.0,0.051689]
[1733806999853,0.00942258,96771.0,96765.0,0.051648]
[1733807000055,0.43320759,96766.0,96765.0,0.051648]
[1733807000256,0.43320759,96766.0,96765.0,0.051688]
[1733807000653,0.00012981,96766.0,96765.0,0.051688]
[1733807003348,0.00012981,96766.0,96765.0,0.05177534]
[1733807003551,0.00012981,96766.0,96765.0,0.41257534]
[1733807005155,0.3608,96787.0,96786.0,0.051637]
[1733807005361,0.3608,96787.0,96786.0,0.398797]
[1733807005564,0.3608,96787.0,96786.0,0.398837]
[1733807009151,0.3608,96787.0,96786.0,0.39894906]
[1733807009557,0.3608,96797.0,96796.0,0.051631]
[1733807009861,0.79387778,96797.0,96796.0,0.051671]
[1733807013058,0.3608,96797.0,96796.0,0.051671]
[1733807014263,0.1,96800.0,96796.0,4e-05]
[1733807014463,0.1,96800.0,96799.0,0.05163]
[1733807014764,0.1,96800.0,96799.0,0.05167]
[1733807015153,0.3608,96816.0,96814.0,0.051622]
[1733807015558,0.3608,96816.0,96815.0,4e-05]
[1733807015863,0.3608,96824.0,96823.0,0.051617]
[1733807016167,0.3608,96824.0,96823.0,0.398697]
[1733807016367,0.79387778,96824.0,96823.0,0.398697]
[1733807016766,0.79387778,96824.0,96823.0,0.39879443]
[1733807016967,0.79387778,96824.0,96823.0,0.39883443]
[1733807017472,0.3608,96824.0,96823.0,0.39883443]
[1733807019567,7.87e-05,96829.0,96828.0,0.051614]
[1733807019969,7.87e-05,96829.0,96828.0,0.051654]
[1733807023170,0.43315648,96829.0,96828.0,0.347]
[1733807023658,0.43315648,96829.0,96828.0,0.19215712]
[1733807024361,7.87e-05,96829.0,96828.0,0.19215712]
[1733807029071,0.051616,96825.0,96823.0,9.743e-05]
[1733807029272,0.3608,96824.0,96823.0,9.743e-05]
[1733807029467,0.50476,96824.0,96813.0,0.34688]
[1733807029664,0.93783778,96824.0,96813.0,0.34688]
[1733807029869,0.00016,96814.0,96813.0,0.34688]
[1733807030370,0.43323778,96814.0,96813.0,0.34688]
[1733807030562,0.43323778,96814.0,96813.0,0.34701054]
[1733807034075,0.79403778,96814.0,96793.0,0.34692]
[1733807034277,0.3608,96796.0,96793.0,0.34692]
[1733807034475,0.00016,96794.0,96793.0,0.34692]
[1733807035084,0.00016,96794.0,96793.0,0.34699996]
[1733807035470,0.52558813,96794.0,96793.0,0.34699996]
[1733807035872,0.43323778,96794.0,96793.0,0.34699996]
[1733807041778,0.00016,96794.0,96793.0,0.34699996]
[1733807047179,0.09235035,96824.0,96793.0,0.70779996]
[1733807047390,0.43307778,96824.0,96822.0,0.051617]
[1733807047581,0.43307778,96824.0,96823.0,0.00012095]
[1733807048891,7.87e-05,96829.0,96828.0,0.051614]
[1733807049088,0.43315648,96829.0,96828.0,0.051614]
[1733807049282,0.43315648,96829.0,96828.0,0.051654]
[1733807051692,7.87e-05,96829.0,96828.0,0.051654]
[1733807054599,0.3608,96855.0,96854.0,0.0516]
[1733807054782,0.79387778,96855.0,96854.0,0.0516]
[1733807054987,0.79387778,96855.0,96854.0,0.05164]
[1733807055686,0.79387778,96855.0,96854.0,0.05173353]
[1733807061486,0.79387778,96855.0,96854.0,0.06168596]
[1733807062599,0.3608,96855.0,96854.0,0.06168596]
[1733807062792,0.3608,96869.0,96866.0,0.051593]
[1733807062992,0.79387778,96869.0,96867.0,0.051593]
[1733807063692,0.79387778,96869.0,96868.0,4e-05]
[1733807073808,0.79387778,96869.0,96854.0,9.353e-05]
[1733807073809,0.051598,96858.0,96854.0,9.353e-05]
[1733807073998,0.3608,96855.0,96825.0,0.229]
[1733807074203,0.3608,96840.0,96827.0,0.051615]
[1733807074505,0.79378425,96840.0,96838.0,0.051609]
[1733807075018,0.79378425,96840.0,96839.0,0.0001198]
[1733807078213,0.36088,96855.0,96854.0,0.0516]
[1733807078410,0.79386425,96855.0,96854.0,0.0516]
[1733807078806,0.79386425,96855.0,96854.0,0.05164]
[1733807079108,0.43306425,96855.0,96854.0,0.05164]
[1733807079309,8e-05,96855.0,96854.0,0.05164]
[1733807080910,8e-05,96855.0,96854.0,0.39844]
[1733807082912,8e-05,96855.0,96854.0,0.39854529]
[1733807083803,8e-05,96855.0,96854.0,0.40851186]
[1733807084015,8e-05,96855.0,96854.0,0.35691186]
[1733807084508,0.19517836,96866.0,96854.0,0.35691186]
[1733807084700,0.62816261,96866.0,96855.0,0.0516]
[1733807085614,0.62816261,96866.0,96865.0,4e-05]
[1733807086908,0.37011062,96866.0,96865.0,4e-05]
[1733807088913,0.11212845,96866.0,96865.0,4e-05]
[1733807091014,0.12322244,96871.0,96865.0,4e-05]
[1733807091409,0.17481644,96867.0,96865.0,4e-05]
[1733807091614,0.12322244,96866.0,96865.0,4e-05]
[1733807091812,0.051594,96867.0,96865.0,4e-05]
[1733807092015,0.3608,96868.0,96854.0,0.34690529]
[1733807092317,0.0516,96855.0,96854.0,0.34690529]
[1733807092513,0.05168,96855.0,96854.0,0.34690529]
[1733807092720,0.05168,96855.0,96854.0,0.00010529]
[1733807092907,0.051601,96854.0,96839.0,0.3608]
[1733807093104,0.051604,96847.0,96839.0,0.3608]
[1733807093310,0.051605,96845.0,96839.0,0.3608]
[1733807093510,0.051606,96844.0,96839.0,0.3608]
[1733807093912,0.051606,96844.0,96840.0,0.00011428]
[1733807099711,0.051606,96844.0,96843.0,0.02031721]
[1733807099922,0.06133242,96844.0,96843.0,0.02031721]
[1733807104317,0.06133242,96844.0,96807.0,0.3608]
[1733807104318,0.051606,96843.0,96807.0,0.3608]
[1733807104519,0.051625,96809.0,96803.0,0.34688]
[1733807104725,0.00620235,96807.0,96803.0,0.34688]
[1733807105025,0.05782835,96807.0,96803.0,0.34688]
[1733807105220,0.05782835,96807.0,96804.0,8.551e-05]
[1733807105922,0.00620235,96807.0,96806.0,0.051626]
[1733807106323,0.051623,96813.0,96808.0,0.051625]
[1733807106623,0.051623,96813.0,96804.0,8.551e-05]
[1733807106624,0.051623,96813.0,96809.0,0.051624]
[1733807106823,0.051623,96813.0,96812.0,4e-05]
[1733807107026,0.0613231,96813.0,96812.0,4e-05]
[1733807107825,0.0097001,96813.0,96812.0,4e-05]
[1733807108030,0.051622,96814.0,96812.0,4e-05]
[1733807108528,0.051622,96814.0,96813.0,4e-05]
[1733807108829,0.06130511,96814.0,96813.0,4e-05]
[1733807113727,0.00968311,96814.0,96806.0,0.02073462]
[1733807113931,0.00968311,96814.0,96777.0,0.34696]
[1733807113932,0.3608,96807.0,96777.0,0.34696]
[1733807114120,0.051641,96779.0,96777.0,0.34696]
[1733807115022,0.051641,96779.0,96778.0,0.00010874]
[1733807115224,0.051641,96779.0,96778.0,0.02027805]
[1733807116331,0.351641,96779.0,96756.0,0.3608]
[1733807116529,0.051651,96760.0,96756.0,0.3608]
[1733807116734,0.051693,96757.0,96752.0,0.34696]
[1733807117229,0.051653,96757.0,96753.0,9.839e-05]
[1733807119142,0.3608,96765.0,96753.0,9.839e-05]
[1733807119143,0.412448,96765.0,96753.0,9.839e-05]
[1733807119440,0.3608,96765.0,96757.0,0.3608]
[1733807119734,0.412448,96765.0,96764.0,0.00015999]
[1733807120636,0.42254507,96765.0,96764.0,0.00015999]
[1733807122433,0.3608,96773.0,96764.0,0.05180799]
[1733807122640,0.051645,96771.0,96764.0,0.05180799]
[1733807122834,0.412444,96773.0,96772.0,0.00015999]
[1733807123740,0.412444,96773.0,96756.0,0.02059269]
[1733807123741,0.6608,96773.0,96756.0,0.02059269]
[1733807123937,0.412452,96757.0,96756.0,0.02059269]
[1733807125236,0.00990546,96774.0,96756.0,0.02059269]
[1733807125428,0.05782735,96790.0,96783.0,0.051638]
[1733807125629,0.051638,96785.0,96773.0,0.36088]
[1733807126031,4e-05,96774.0,96773.0,0.412524]
[1733807127431,4e-05,96774.0,96773.0,0.36088]
[1733807127731,4e-05,96774.0,96773.0,8e-05]
[1733807128138,4e-05,96774.0,96757.0,0.2339]
[1733807128139,0.051645,96771.0,96761.0,0.05165]
[1733807128338,0.10947235,96771.0,96761.0,0.05165]
[1733807128639,4e-05,96762.0,96761.0,0.05165]
[1733807130644,4e-05,96762.0,96761.0,0.05279225]
[1733807132342,0.3608,96783.0,96761.0,0.01666225]
[1733807132542,0.05782735,96790.0,96784.0,0.051637]
[1733807132737,0.05782735,96790.0,96787.0,0.00140841]
[1733807132952,0.01021026,96790.0,96787.0,0.00140841]
[1733807133244,0.12340761,96792.0,96787.0,0.00140841]
[1733807133446,0.12340761,96793.0,96787.0,0.00140841]
[1733807133647,0.12340761,96795.0,96790.0,8e-05]
[1733807133840,0.12340761,96796.0,96790.0,0.00148841]
[1733807134045,0.12340761,96796.0,96790.0,0.00161542]
[1733807134249,0.18123496,96797.0,96795.0,0.051632]
[1733807134442,0.0100019,96797.0,96796.0,0.051631]
[1733807134643,0.00010106,96802.0,96800.0,0.051629]
[1733807134849,0.00010106,96802.0,96801.0,0.00140841]
[1733807135153,0.01020066,96802.0,96801.0,0.00144841]
[1733807137849,0.01020066,96802.0,96797.0,0.05163]
[1733807138358,0.00031998,96798.0,96797.0,0.05163]
[1733807141249,0.00031998,96798.0,96790.0,0.36100701]
[1733807141451,0.051633,96793.0,96790.0,0.36100701]
[1733807141647,0.00031998,96791.0,96790.0,0.36100701]
[1733807142157,0.12372759,96791.0,96790.0,0.00020701]
[1733807142458,0.00031998,96791.0,96790.0,0.02100995]
[1733807143257,0.00031998,96791.0,96790.0,0.38180995]
[1733807145257,0.00031998,96791.0,96790.0,0.02100995]
[1733807148266,0.01051225,96791.0,96790.0,0.02100995]
[1733807150558,0.00031998,96791.0,96790.0,0.02100995]
[1733807153465,0.00031998,96791.0,96790.0,0.38180995]
[1733807154365,0.00031998,96791.0,96790.0,0.02100995]
[1733807156463,0.00031998,96791.0,96760.0,0.3608]
[1733807156464,0.051642,96777.0,96768.0,0.051646]
[1733807156666,0.051642,96777.0,96766.0,0.34708]
[1733807156867,0.05782735,96779.0,96766.0,0.34708]
[1733807157064,0.05782735,96779.0,96775.0,0.051642]
[1733807157265,0.05782735,96779.0,96778.0,8e-05]
[1733807157569,0.12355789,96787.0,96778.0,0.00020265]
[1733807157869,0.05782735,96788.0,96786.0,0.051636]
[1733807158060,0.06159518,96791.0,96786.0,0.051716]
[1733807158261,0.051634,96791.0,96787.0,8e-05]
[1733807158563,0.051634,96791.0,96790.0,8e-05]
[1733807158969,0.05782735,96796.0,96790.0,8e-05]
[1733807159166,0.06793869,96796.0,96790.0,8e-05]
[1733807159365,0.06793869,96796.0,96778.0,0.22862265]
[1733807159366,0.06793869,96796.0,96795.0,8e-05]
[1733807159565,0.00010106,96802.0,96795.0,8e-05]
[1733807159863,0.00980835,96801.0,96800.0,0.051629]
[1733807160061,0.00010106,96802.0,96800.0,0.051629]
[1733807160267,0.00010106,96802.0,96800.0,0.051669]
[1733807160461,0.00010106,96802.0,96801.0,4e-05]
[1733807160667,8e-05,96807.0,96805.0,0.051626]
[1733807161063,8e-05,96807.0,96806.0,4e-05]
[1733807162178,8e-05,96807.0,96806.0,0.00013633]
[1733807162366,8e-05,96807.0,96806.0,0.58363633]
[1733807162870,0.15454055,96826.0,96806.0,0.58363633]
[1733807163174,0.12363244,96830.0,96827.0,0.051614]
[1733807163467,0.2639759,96840.0,96832.0,0.051612]
[1733807163468,0.05782735,96840.0,96832.0,0.051612]
[1733807163670,0.05782735,96840.0,96829.0,4e-05]
[1733807163671,0.0102558,96839.0,96834.0,0.3608]
[1733807163968,0.0102558,96839.0,96838.0,4e-05]
[1733807163969,9.861e-05,96839.0,96838.0,4e-05]
[1733807164162,9.861e-05,96839.0,96838.0,0.05172485]
[1733807164775,9.861e-05,96839.0,96838.0,0.75956485]
[1733807164964,0.00995785,96857.0,96847.0,0.051604]
[1733807165269,0.05782735,96860.0,96854.0,0.3608]
[1733807165472,0.01004656,96868.0,96856.0,4e-05]
[1733807165659,0.38794055,96877.0,96864.0,0.3608]
[1733807165660,0.05782735,96870.0,96864.0,0.3608]
[1733807165856,0.05782735,96870.0,96867.0,4e-05]
[1733807166060,0.05782735,96877.0,96869.0,4e-05]
[1733807166264,0.2249,96878.0,96869.0,4e-05]
[1733807166465,0.2249,96878.0,96865.0,0.051594]
[1733807166466,0.2249,96878.0,96876.0,4e-05]
[1733807166771,0.00991307,96878.0,96877.0,4e-05]
[1733807166967,0.36220001,96892.0,96877.0,4e-05]
[1733807166968,0.3608,96892.0,96877.0,4e-05]
[1733807167161,0.05782735,96890.0,96878.0,0.00011563]
[1733807167564,0.37199055,96892.0,96878.0,0.00011563]
[1733807167769,0.05782735,96888.0,96878.0,0.00011563]
[1733807168081,0.37059054,96892.0,96878.0,0.00011563]
[1733807168082,0.05782735,96890.0,96878.0,0.00011563]
[1733807168567,0.37199055,96892.0,96889.0,4e-05]
[1733807168568,0.01119055,96892.0,96889.0,4e-05]
[1733807168772,0.00979054,96892.0,96889.0,4e-05]
[1733807168967,0.2204,96897.0,96891.0,4e-05]
[1733807169276,0.2204,96897.0,96896.0,4e-05]
[1733807169572,0.23028418,96897.0,96879.0,0.3608]
[1733807169872,0.41278698,96880.0,96878.0,0.00011563]
[1733807170167,0.00039998,96879.0,96878.0,0.00011563]
[1733807171672,0.00039998,96879.0,96878.0,0.02092926]
[1733807171864,0.01051727,96879.0,96878.0,0.02092926]
[1733807175176,0.00039998,96879.0,96878.0,0.02092926]
[1733807180685,0.00039998,96879.0,96869.0,0.051592]
[1733807180977,0.00039998,96870.0,96869.0,0.051592]
[1733807181777,0.00039998,96870.0,96869.0,0.05172507]
[1733807182774,0.00039998,96870.0,96860.0,0.3608]
[1733807183187,0.00039998,96861.0,96860.0,0.412397]
[1733807183781,0.00039998,96861.0,96860.0,0.0517083]
[1733807183984,0.00039998,96861.0,96860.0,0.02109735]
[1733807184779,0.05199698,96861.0,96860.0,0.02109735]
[1733807184977,0.05199698,96861.0,96860.0,0.02122985]
[1733807185480,0.06170546,96861.0,96860.0,0.02122985]
[1733807185882,0.01010846,96861.0,96830.0,0.051613]
[1733807186087,0.3608,96836.0,96803.0,0.3608]
[1733807186281,0.05782735,96820.0,96810.0,0.051624]
[1733807186685,0.051619,96819.0,96803.0,0.3608]
[1733807186882,0.051619,96819.0,96805.0,0.051626]
[1733807189586,0.051619,96819.0,96804.0,9.663e-05]
[1733807189587,0.12363244,96824.0,96818.0,0.02051665]
[1733807189789,0.12363244,96831.0,96818.0,0.02051665]
[1733807189988,0.05782735,96830.0,96823.0,4e-05]
[1733807190190,0.051616,96825.0,96823.0,4e-05]
[1733807197291,0.3608,96826.0,96823.0,4e-05]
[1733807198192,0.051615,96827.0,96825.0,4e-05]
[1733807199101,0.051615,96827.0,96826.0,4e-05]
[1733807202693,0.01008553,96834.0,96826.0,4e-05]
[1733807202894,0.05782735,96840.0,96832.0,0.051612]
[1733807203099,0.05782735,96840.0,96833.0,4e-05]
[1733807203295,0.06811224,96840.0,96839.0,4e-05]
[1733807203492,0.06811224,96840.0,96839.0,0.051608]
[1733807203692,0.3608,96848.0,96843.0,0.051606]
[1733807203996,0.37088415,96848.0,96847.0,4e-05]
[1733807204390,0.05782735,96857.0,96850.0,0.051602]
[1733807204794,0.05782735,96857.0,96856.0,4e-05]
[1733807204996,0.06767889,96857.0,96856.0,4e-05]
[1733807205303,0.051597,96860.0,96856.0,4e-05]
[1733807205600,0.051599,96858.0,96844.0,0.051605]
[1733807205896,0.05782735,96854.0,96844.0,0.051605]
[1733807206100,0.05782735,96854.0,96846.0,0.051604]
[1733807207692,0.051605,96847.0,96842.0,0.3608]
[1733807208099,0.00055998,96843.0,96842.0,0.3608]
[1733807208906,0.00055998,96843.0,96842.0,0.412407]
[1733807213006,0.00055998,96843.0,96842.0,0.3608]
[1733807216006,0.051608,96840.0,96839.0,0.02045629]
[1733807216306,0.051616,96824.0,96809.0,0.34688]
[1733807216500,0.051616,96824.0,96823.0,0.02107237]
[1733807217012,0.05217598,96824.0,96823.0,0.02107237]
[1733807217307,0.00055998,96824.0,96823.0,0.38199022]
[1733807217510,0.00055998,96824.0,96823.0,0.02119022]
[1733807223108,0.051633,96794.0,96789.0,0.051635]
[1733807223305,0.051633,96793.0,96789.0,0.051635]
[1733807223505,4e-05,96790.0,96789.0,0.051635]
[1733807224114,4e-05,96790.0,96789.0,0.05172679]
[1733807224313,0.051675,96790.0,96789.0,0.0210344]
[1733807225405,0.06164938,96790.0,96789.0,0.0210344]